fUSD/lending_fUSD_20241127
["ID","MTS","AMOUNT","RATE_DAILY","PERIOD"]
[343572947,1732726308953,-591.32,9.999e-05,2]
[343572948,1732726308963,-12662.83317714,9.999e-05,2]
[343572949,1732726308972,-664.57,9.999e-05,2]
[343572950,1732726308982,-591.32,9.999e-05,2]
[343572951,1732726308991,-664.57,9.999e-05,2]
[343572952,1732726309001,-591.32,9.999e-05,2]
[343572953,1732726309010,-664.57,9.999e-05,2]
[343572954,1732726309019,-591.53,9.999e-05,2]
[343572955,1732726309029,-500.0,9.999e-05,2]
[343572956,1732726309039,-664.57,9.999e-05,2]
[343572957,1732726309048,-500.0,9.999e-05,2]
[343572958,1732726309058,-664.57,9.999e-05,2]
[343572959,1732726309068,-500.0,9.999e-05,2]
[343572960,1732726309078,-664.57,9.999e-05,2]
[343572961,1732726309088,-500.0,9.999e-05,2]
[343572962,1732726309098,-500.0,9.999e-05,2]
[343572963,1732726309108,-664.57,9.999e-05,2]
[343572964,1732726309118,-574.6,9.999e-05,2]
[343572965,1732726309128,-664.57,9.999e-05,2]
[343572966,1732726309137,-664.57,9.999e-05,2]
[343572967,1732726309147,-843.55,9.999e-05,2]
[343572968,1732726309156,-664.57,9.999e-05,2]
[343572969,1732726309166,-843.55,9.999e-05,2]
[343572970,1732726309178,-664.57,9.999e-05,2]
[343572971,1732726309187,-843.55,9.999e-05,2]
[343572972,1732726309196,-664.57,9.999e-05,2]
[343572973,1732726309206,-843.55,9.999e-05,2]
[343572974,1732726309216,-664.57,9.999e-05,2]
[343572975,1732726309225,-500.0,9.999e-05,2]
[343572976,1732726309235,-843.55,9.999e-05,2]
[343572977,1732726309244,-664.75156418,9.999e-05,2]
[343572978,1732726309253,-843.55,9.999e-05,2]
[343572979,1732726309262,-500.0,9.999e-05,2]
[343572980,1732726309272,-843.55,9.999e-05,2]
[343572981,1732726309281,-500.0,9.999e-05,2]
[343572982,1732726309290,-843.55,9.999e-05,2]
[343572983,1732726309300,-843.55,9.999e-05,2]
[343572984,1732726309310,-500.0,9.999e-05,2]
[343572985,1732726309320,-3966.33,9.999e-05,2]
[343572986,1732726309329,-500.0,9.999e-05,2]
[343572987,1732726309338,-843.55,9.999e-05,2]
[343572988,1732726309348,-500.0,9.999e-05,2]
[343572989,1732726309358,-843.68,9.999e-05,2]
[343572990,1732726309367,-3966.33,9.999e-05,2]
[343572991,1732726309377,-500.0,9.999e-05,2]
[343572992,1732726309386,-3966.33,9.999e-05,2]
[343572993,1732726309395,-500.0,9.999e-05,2]
[343572994,1732726309404,-3966.33,9.999e-05,2]
[343572995,1732726309414,-500.0,9.999e-05,2]
[343572996,1732726309426,-3966.33,9.999e-05,2]
[343572997,1732726309435,-500.0,9.999e-05,2]
[343572998,1732726309445,-3966.33,9.999e-05,2]
[343572999,1732726309454,-500.0,9.999e-05,2]
[343573000,1732726309463,-3966.33,9.999e-05,2]
[343573001,1732726309473,-500.0,9.999e-05,2]
[343573002,1732726309483,-3966.33,9.999e-05,2]
[343573003,1732726309492,-543.52,9.999e-05,2]
[343573004,1732726309501,-3966.33,9.999e-05,2]
[343573005,1732726309511,-3966.33,9.999e-05,2]
[343573006,1732726309521,-3966.33,9.999e-05,2]
[343573007,1732726309530,-3966.33,9.999e-05,2]
[343573008,1732726309540,-3966.49,9.999e-05,2]
[343573009,1732726309549,-500.0,9.999e-05,2]
[343573010,1732726309560,-500.0,9.999e-05,2]
[343573011,1732726309569,-500.0,9.999e-05,2]
[343573012,1732726309580,-4480.2,9.999e-05,2]
[343573013,1732726309590,-500.0,9.999e-05,2]
[343573014,1732726309604,-500.0,9.999e-05,2]
[343573015,1732726309614,-500.0,9.999e-05,2]
[343573016,1732726309624,-4480.2,9.999e-05,2]
[343573017,1732726309634,-500.0,9.999e-05,2]
[343573018,1732726309645,-500.0,9.999e-05,2]
[343573019,1732726309655,-457.7,9.999e-05,2]
[343573020,1732726309666,-4480.2,9.999e-05,2]
[343573021,1732726309679,-500.0,9.999e-05,2]
[343573022,1732726309689,-500.0,9.999e-05,2]
[343573023,1732726309699,-4480.2,9.999e-05,2]
[343573024,1732726309708,-500.0,9.999e-05,2]
[343573025,1732726309718,-4480.2,9.999e-05,2]
[343573026,1732726309728,-500.0,9.999e-05,2]
[343573027,1732726309739,-4480.2,9.999e-05,2]
[343573028,1732726309750,-500.0,9.999e-05,2]
[343573029,1732726309760,-282.01,9.999e-05,2]
[343573030,1732726309770,-4480.31,9.999e-05,2]
[343573031,1732726309782,-500.0,9.999e-05,2]
[343573032,1732726309792,-500.0,9.999e-05,2]
[343573033,1732726309802,-330.44,9.999e-05,2]
[343573034,1732726309811,-277.42,9.999e-05,2]
[343573035,1732726309820,-1125.14,9.999e-05,2]
[343573036,1732726309830,-1125.14,9.999e-05,2]
[343573037,1732726309839,-1125.14,9.999e-05,2]
[343573038,1732726309849,-1125.14,9.999e-05,2]
[343573039,1732726309858,-1125.14,9.999e-05,2]
[343573040,1732726309867,-1125.14,9.999e-05,2]
[343573041,1732726309877,-1125.14,9.999e-05,2]
[343573042,1732726309886,-500.0,9.999e-05,2]
[343573043,1732726309895,-1125.14,9.999e-05,2]
[343573044,1732726309905,-500.0,9.999e-05,2]
[343573045,1732726309915,-500.0,9.999e-05,2]
[343573046,1732726309926,-580.82,9.999e-05,2]
[343573047,1732726309935,-1125.14,9.999e-05,2]
[343573048,1732726309945,-500.0,9.999e-05,2]
[343573049,1732726309954,-580.82,9.999e-05,2]
[343573050,1732726309964,-1125.14,9.999e-05,2]
[343573051,1732726309973,-1125.14,9.999e-05,2]
[343573052,1732726309982,-580.82,9.999e-05,2]
[343573053,1732726309991,-500.0,9.999e-05,2]
[343573054,1732726310000,-580.82,9.999e-05,2]
[343573055,1732726310010,-500.0,9.999e-05,2]
[343573056,1732726310019,-1125.14,9.999e-05,2]
[343573057,1732726310028,-580.82,9.999e-05,2]
[343573058,1732726310038,-1125.37,9.999e-05,2]
[343573059,1732726310048,-580.82,9.999e-05,2]
[343573060,1732726310057,-500.0,9.999e-05,2]
[343573061,1732726310067,-500.0,9.999e-05,2]
[343573062,1732726310076,-580.82,9.999e-05,2]
[343573063,1732726310086,-500.0,9.999e-05,2]
[343573064,1732726310096,-464.27,9.999e-05,2]
[343573065,1732726310105,-652.55,9.999e-05,2]
[343573066,1732726310115,-580.82,9.999e-05,2]
[343573067,1732726310125,-500.0,9.999e-05,2]
[343573068,1732726310135,-652.55,9.999e-05,2]
[343573069,1732726310145,-580.82,9.999e-05,2]
[343573070,1732726310155,-500.0,9.999e-05,2]
[343573071,1732726310165,-652.55,9.999e-05,2]
[343573072,1732726310178,-580.82,9.999e-05,2]
[343573073,1732726310187,-500.0,9.999e-05,2]
[343573074,1732726310197,-580.82,9.999e-05,2]
[343573075,1732726310206,-500.0,9.999e-05,2]
[343573076,1732726310216,-652.55,9.999e-05,2]
[343573077,1732726310225,-580.82,9.999e-05,2]
[343573078,1732726310235,-500.0,9.999e-05,2]
[343573079,1732726310245,-652.55,9.999e-05,2]
[343573080,1732726310254,-580.87585927,9.999e-05,2]
[343573081,1732726310263,-500.0,9.999e-05,2]
[343573082,1732726310273,-652.55,9.999e-05,2]
[343573083,1732726310282,-500.0,9.999e-05,2]
[343573084,1732726310291,-652.55,9.999e-05,2]
[343573085,1732726310301,-500.0,9.999e-05,2]
[343573086,1732726310310,-652.55,9.999e-05,2]
[343573087,1732726310319,-500.0,9.999e-05,2]
[343573088,1732726310328,-652.55,9.999e-05,2]
[343573089,1732726310338,-500.0,9.999e-05,2]
[343573090,1732726310347,-652.55,9.999e-05,2]
[343573091,1732726310356,-500.0,9.999e-05,2]
[343573092,1732726310366,-500.0,9.999e-05,2]
[343573093,1732726310375,-652.57,9.999e-05,2]
[343573094,1732726310384,-320.91896702,9.999e-05,2]
[343573095,1732726310394,-500.0,9.999e-05,2]
[343573096,1732726310403,-500.0,9.999e-05,2]
[343573097,1732726310412,-500.0,9.999e-05,2]
[343573098,1732726310425,-500.0,9.999e-05,2]
[343573099,1732726310436,-500.0,9.999e-05,2]
[343573100,1732726310446,-500.0,9.999e-05,2]
[343573101,1732726310455,-500.0,9.999e-05,2]
[343573102,1732726310464,-500.0,9.999e-05,2]
[343573103,1732726310474,-330.33,9.999e-05,2]
[343573104,1732726310483,-500.0,9.999e-05,2]
[343573105,1732726310493,-500.0,9.999e-05,2]
[343573106,1732726310502,-500.0,9.999e-05,2]
[343573107,1732726310511,-500.0,9.999e-05,2]
[343573108,1732726310520,-399.31,9.999e-05,2]
[343573109,1732726310529,-500.0,9.999e-05,2]
[343573110,1732726310539,-500.0,9.999e-05,2]
[343573111,1732726310548,-500.0,9.999e-05,2]
[343573112,1732726310558,-529.01,9.999e-05,2]
[343573113,1732726310567,-529.01,9.999e-05,2]
[343573114,1732726310576,-561.04,9.999e-05,2]
[343573115,1732726310586,-529.01,9.999e-05,2]
[343573116,1732726310598,-561.04,9.999e-05,2]
[343573117,1732726310607,-529.01,9.999e-05,2]
[343573118,1732726310617,-561.04,9.999e-05,2]
[343573119,1732726310626,-529.01,9.999e-05,2]
[343573120,1732726310636,-561.04,9.999e-05,2]
[343573121,1732726310645,-529.01,9.999e-05,2]
[343573122,1732726310655,-561.04,9.999e-05,2]
[343573123,1732726310664,-529.01,9.999e-05,2]
[343573124,1732726310676,-561.04,9.999e-05,2]
[343573125,1732726310686,-529.01,9.999e-05,2]
[343573126,1732726310695,-561.04,9.999e-05,2]
[343573127,1732726310704,-529.01,9.999e-05,2]
[343573128,1732726310714,-561.04,9.999e-05,2]
[343573129,1732726310723,-529.01,9.999e-05,2]
[343573130,1732726310733,-500.0,9.999e-05,2]
[343573131,1732726310743,-561.04,9.999e-05,2]
[343573132,1732726310752,-529.01,9.999e-05,2]
[343573133,1732726310762,-500.0,9.999e-05,2]
[343573134,1732726310772,-628.84,9.999e-05,2]
[343573135,1732726310781,-561.04,9.999e-05,2]
[343573136,1732726310791,-486.94434817,9.999e-05,2]
[343573137,1732726310802,-529.01,9.999e-05,2]
[343573138,1732726310811,-500.0,9.999e-05,2]
[343573139,1732726310822,-561.04,9.999e-05,2]
[343573140,1732726310832,-500.0,9.999e-05,2]
[343573141,1732726310841,-529.2,9.999e-05,2]
[343573142,1732726310851,-419.79,9.999e-05,2]
[343573143,1732726310860,-1152.02,9.999e-05,2]
[343573144,1732726310870,-561.04,9.999e-05,2]
[343573145,1732726310879,-443.66,9.999e-05,2]
[343573146,1732726310889,-1152.02,9.999e-05,2]
[343573147,1732726310898,-561.04,9.999e-05,2]
[343573148,1732726310908,-561.04,9.999e-05,2]
[343573149,1732726310918,-1152.02,9.999e-05,2]
[343573150,1732726310930,-561.04,9.999e-05,2]
[343573151,1732726310939,-1152.02,9.999e-05,2]
[343573152,1732726310949,-561.04,9.999e-05,2]
[343573153,1732726310959,-1152.02,9.999e-05,2]
[343573154,1732726310971,-561.04,9.999e-05,2]
[343573155,1732726310980,-1152.02,9.999e-05,2]
[343573156,1732726310990,-561.09,9.999e-05,2]
[343573157,1732726311000,-1152.02,9.999e-05,2]
[343573158,1732726311010,-1152.02,9.999e-05,2]
[343573159,1732726311019,-1152.02,9.999e-05,2]
[343573160,1732726311029,-1152.02,9.999e-05,2]
[343573161,1732726311038,-1152.02,9.999e-05,2]
[343573162,1732726311048,-1152.02,9.999e-05,2]
[343573163,1732726311267,-1152.09,9.999e-05,2]
[343573164,1732726311276,-1612.26,9.999e-05,2]
[343573165,1732726311285,-584.92,9.999e-05,2]
[343573166,1732726311294,-1612.26,9.999e-05,2]
[343573167,1732726311304,-584.92,9.999e-05,2]
[343573168,1732726311313,-1612.26,9.999e-05,2]
[343573169,1732726311322,-1612.26,9.999e-05,2]
[343573170,1732726311332,-584.92,9.999e-05,2]
[343573171,1732726311341,-1612.26,9.999e-05,2]
[343573172,1732726311350,-1612.26,9.999e-05,2]
[343573173,1732726311359,-584.92,9.999e-05,2]
[343573174,1732726311368,-1612.26,9.999e-05,2]
[343573175,1732726311377,-584.92,9.999e-05,2]
[343573176,1732726311387,-500.0,9.999e-05,2]
[343573177,1732726311396,-1612.26,9.999e-05,2]
[343573178,1732726311406,-584.92,9.999e-05,2]
[343573179,1732726311415,-500.0,9.999e-05,2]
[343573180,1732726311430,-1612.26,9.999e-05,2]
[343573181,1732726311440,-584.92,9.999e-05,2]
[343573182,1732726311449,-500.0,9.999e-05,2]
[343573183,1732726311459,-500.0,9.999e-05,2]
[343573184,1732726311468,-1612.26,9.999e-05,2]
[343573185,1732726311478,-171.68,9.999e-05,2]
[343573186,1732726311487,-584.92,9.999e-05,2]
[343573187,1732726311497,-1612.4,9.999e-05,2]
[343573188,1732726311506,-500.0,9.999e-05,2]
[343573189,1732726311516,-584.92,9.999e-05,2]
[343573190,1732726311526,-500.0,9.999e-05,2]
[343573191,1732726311535,-584.92,9.999e-05,2]
[343573192,1732726311545,-500.0,9.999e-05,2]
[343573193,1732726311555,-584.92,9.999e-05,2]
[343573194,1732726311565,-543.58,9.999e-05,2]
[343573195,1732726311575,-584.92,9.999e-05,2]
[343573196,1732726311585,-585.14322855,9.999e-05,2]
[343573197,1732726311597,-544.97,9.999e-05,2]
[343573198,1732726311607,-544.97,9.999e-05,2]
[343573199,1732726311617,-544.97,9.999e-05,2]
[343573200,1732726311627,-544.97,9.999e-05,2]
[343573201,1732726311638,-544.97,9.999e-05,2]
[343573202,1732726311648,-544.97,9.999e-05,2]
[343573203,1732726311658,-545.0,9.999e-05,2]
[343573204,1732726311668,-500.0,9.999e-05,2]
[343573205,1732726311681,-500.0,9.999e-05,2]
[343573206,1732726311690,-500.0,9.999e-05,2]
[343573207,1732726311699,-500.0,9.999e-05,2]
[343573208,1732726311709,-500.0,9.999e-05,2]
[343573209,1732726311719,-500.0,9.999e-05,2]
[343573210,1732726311729,-500.0,9.999e-05,2]
[343573211,1732726311739,-500.0,9.999e-05,2]
[343573212,1732726311748,-553.29,9.999e-05,2]
[343573213,1732726311758,-500.0,9.999e-05,2]
[343573214,1732726311768,-406.68,9.999e-05,2]
[343573215,1732726311777,-500.0,9.999e-05,2]
[343573216,1732726311787,-500.0,9.999e-05,2]
[343573217,1732726311796,-500.0,9.999e-05,2]
[343573218,1732726311806,-500.0,9.999e-05,2]
[343573219,1732726311815,-500.0,9.999e-05,2]
[343573220,1732726311825,-500.0,9.999e-05,2]
[343573221,1732726311835,-500.0,9.999e-05,2]
[343573222,1732726311844,-500.0,9.999e-05,2]
[343573223,1732726311853,-500.0,9.999e-05,2]
[343573224,1732726311863,-500.0,9.999e-05,2]
[343573225,1732726311872,-500.0,9.999e-05,2]
[343573226,1732726311881,-500.0,9.999e-05,2]
[343573227,1732726311891,-500.0,9.999e-05,2]
[343573228,1732726311900,-429.4,9.999e-05,2]
[343573229,1732726311909,-500.0,9.999e-05,2]
[343573230,1732726311919,-500.0,9.999e-05,2]
[343573231,1732726311931,-246.71704179,0.0001,2]
[343573232,1732726311941,-259.05483962,0.0001,2]
[343573233,1732726311950,-100000.0,0.0001,2]
[343573234,1732726311959,-100000.0,0.0001,2]
[343573235,1732726311968,-100000.0,0.0001,2]
[343573236,1732726311977,-12396.1368841,0.0001,2]
[343573237,1732726311987,-12396.13688404,0.0001,2]
[343573238,1732726311996,-12396.13688404,0.0001,2]
[343573239,1732726312006,-12396.13688404,0.0001,2]
[343573240,1732726312015,-12396.13688404,0.0001,2]
[343573241,1732726312025,-12396.13688404,0.0001,2]
[343573242,1732726312034,-12396.13688404,0.0001,2]
[343573243,1732726312043,-12396.13688404,0.0001,2]
[343573244,1732726312052,-12396.13688404,0.0001,2]
[343573245,1732726312061,-623203.969905,0.0001,2]
[343573246,1732726313200,-500.0,9.863e-05,2]
[343573247,1732726313209,-14.97680774,9.863e-05,2]
[343573248,1732726313221,-485.02319226,9.863e-05,2]
[343573249,1732726313230,-500.0,9.863e-05,2]
[343573250,1732726313240,-292.96,9.979e-05,2]
[343573251,1732726313250,-500.0,9.999e-05,2]
[343573252,1732726313259,-7883.25284174,0.0001,2]
[343573253,1732726313276,-20175.60165523,0.0001,2]
[343573254,1732726313601,-500.0,9.863e-05,2]
[343573255,1732726313611,-500.0,9.863e-05,2]
[343573256,1732726313621,-484.1575613,9.863e-05,2]
[343573257,1732726313631,-500.0,9.863e-05,2]
[343573258,1732726313640,-233.36778835,9.863e-05,2]
[343573259,1732726313651,-266.63221165,9.863e-05,2]
[343573260,1732726313661,-500.0,9.863e-05,2]
[343573261,1732726313679,-500.0,9.863e-05,2]
[343573262,1732726313689,-500.0,9.899e-05,2]
[343573263,1732726313699,-500.0,9.899e-05,2]
[343573264,1732726313708,-500.0,9.978e-05,2]
[343573265,1732726313718,-500.0,9.978e-05,2]
[343573266,1732726313728,-500.0,9.997e-05,2]
[343573267,1732726313737,-500.0,9.997e-05,2]
[343573268,1732726313747,-500.0,9.998e-05,2]
[343573269,1732726313756,-500.0,9.999e-05,2]
[343573270,1732726313766,-500.0,9.999e-05,2]
[343573271,1732726313775,-500.0,9.999e-05,2]
[343573272,1732726313785,-357.88,9.999e-05,2]
[343573273,1732726313795,-995.48778835,0.0001,2]
[343573274,1732726313879,-500.0,9.998e-05,2]
[343573275,1732726313888,-9885.89996918,0.0001,2]
[343573276,1732726313899,-480.33999999,0.0001,2]
[343573277,1732726313913,-1537.65,0.0001,2]
[343573278,1732726313938,-295.04,0.0001,2]
[343573279,1732726313958,-500.0,9.998e-05,2]
[343573280,1732726313967,-28.56666288,0.0001,2]
[343573281,1732726314556,-566.90965215,9.863e-05,2]
[343573282,1732726314566,-500.0,9.863e-05,2]
[343573283,1732726314576,-500.0,9.863e-05,2]
[343573284,1732726314586,-500.0,9.863e-05,2]
[343573285,1732726314598,-500.0,9.863e-05,2]
[343573286,1732726314608,-500.0,9.863e-05,2]
[343573287,1732726314617,-500.0,9.863e-05,2]
[343573288,1732726314627,-500.0,9.863e-05,2]
[343573289,1732726314637,-500.0,9.863e-05,2]
[343573290,1732726314647,-500.0,9.863e-05,2]
[343573291,1732726314656,-500.0,9.863e-05,2]
[343573292,1732726314669,-4774.32199454,9.99e-05,2]
[343573293,1732726314680,-500.0,9.998e-05,2]
[343573294,1732726314690,-500.0,9.998e-05,2]
[343573295,1732726314699,-500.0,9.998e-05,2]
[343573296,1732726314709,-500.0,9.998e-05,2]
[343573297,1732726314718,-500.0,9.998e-05,2]
[343573298,1732726314727,-536.02,9.999e-05,2]
[343573299,1732726314736,-500.0,9.999e-05,2]
[343573300,1732726314745,-500.0,9.999e-05,2]
[343573301,1732726314755,-500.0,9.999e-05,2]
[343573302,1732726314764,-500.0,9.999e-05,2]
[343573303,1732726314774,-158.55600478,9.999e-05,2]
[343573304,1732726314784,-507717.01706492,0.0001,2]
[343573305,1732726314798,-113312.63392868,0.0001,2]
[343573306,1732726314814,-642.05691847,0.0001,2]
[343573307,1732726314825,-716.44001999,0.0001,2]
[343573308,1732726314836,-2438.0,0.0001,2]
[343573309,1732726314846,-3203.66379983,0.0001,2]
[343573310,1732726314872,-500.0,9.998e-05,2]
[343573311,1732726314883,-4040.0,0.0001,2]
[343573312,1732726314921,-500.0,9.863e-05,2]
[343573313,1732726314930,-500.0,9.863e-05,2]
[343573314,1732726314939,-4821.03287961,0.0001,2]
[343573315,1732726314950,-22664.22060776,0.0001,2]
[343573316,1732726315152,-55557.83028695,0.0001,2]
[343573317,1732726315575,-500.0,9.863e-05,2]
[343573318,1732726315584,-500.0,9.863e-05,2]
[343573319,1732726315594,-500.0,9.863e-05,2]
[343573320,1732726315606,-500.0,9.863e-05,2]
[343573321,1732726315615,-500.0,9.863e-05,2]
[343573322,1732726315625,-500.0,9.863e-05,2]
[343573323,1732726315634,-500.0,9.863e-05,2]
[343573324,1732726315645,-500.0,9.863e-05,2]
[343573325,1732726315655,-500.0,9.863e-05,2]
[343573326,1732726315664,-500.0,9.863e-05,2]
[343573327,1732726315676,-500.0,9.863e-05,2]
[343573328,1732726315685,-500.0,9.898e-05,2]
[343573329,1732726315694,-500.0,9.899e-05,2]
[343573330,1732726315703,-500.0,9.899e-05,2]
[343573331,1732726315713,-428.18,9.978e-05,2]
[343573332,1732726315722,-500.0,9.979e-05,2]
[343573333,1732726315731,-172.72,9.997e-05,2]
[343573334,1732726315740,-500.0,9.999e-05,2]
[343573335,1732726315749,-500.0,9.999e-05,2]
[343573336,1732726315759,-500.0,9.999e-05,2]
[343573337,1732726315768,-500.0,9.999e-05,2]
[343573338,1732726315777,-500.0,9.999e-05,2]
[343573339,1732726315787,-500.0,9.999e-05,2]
[343573340,1732726315796,-500.0,9.999e-05,2]
[343573341,1732726315805,-500.0,9.999e-05,2]
[343573342,1732726315814,-500.0,9.999e-05,2]
[343573343,1732726315823,-500.0,9.999e-05,2]
[343573344,1732726315832,-1314.2,0.0001,2]
[343573345,1732726315844,-1787.16457301,0.0001,2]
[343573346,1732726315857,-737.20001555,0.0001,2]
[343573347,1732726315993,-500.0,9.863e-05,2]
[343573348,1732726316002,-127.0376241,9.863e-05,2]
[343573349,1732726316013,-372.9623759,9.863e-05,2]
[343573350,1732726316022,-213.1,9.999e-05,2]
[343573351,1732726316031,-165.2693345,0.0001,2]
[343573352,1732726316041,-1331.421022,0.0001,2]
[343573353,1732726316052,-2535.0000005,0.0001,2]
[343573354,1732726316064,-1660.00004854,0.0001,2]
[343573355,1732726316286,-500.0,9.863e-05,2]
[343573356,1732726316295,-6642.62430152,0.0001,2]
[343573358,1732726470458,150.0,6.413e-05,2]
[343573359,1732726470491,19.9,6.413e-05,2]
[343573362,1732726802865,150.0,6.413e-05,2]
[343573363,1732726804873,150.0,6.413e-05,2]
[343573364,1732726805003,1977.2,9.151e-05,14]
[343573365,1732726805051,150.0,6.413e-05,2]
[343573366,1732726805275,150.0,6.413e-05,2]
[343573367,1732726805474,150.0,6.413e-05,2]
[343573368,1732726805668,150.0,6.413e-05,2]
[343573369,1732726805861,244.87551712,6.413e-05,2]
[343573371,1732727186765,150.0,6.333e-05,2]
[343573372,1732727186788,19.9,6.333e-05,2]
[343573395,1732727397564,301.100516,0.00026,120]
[343573405,1732727431639,-890.46,7.966e-05,2]
[343573406,1732727431648,-2000.0,8.003e-05,2]
[343573407,1732727431658,-6073.07,8.052e-05,2]
[343573408,1732727431668,-200.0,8.052e-05,2]
[343573409,1732727431677,-163.09,8.161e-05,2]
[343573410,1732727431686,-542.571321,8.178e-05,2]
[343573411,1732727431696,-167.47,8.218e-05,2]
[343573412,1732727431707,-2258.65,8.219e-05,2]
[343573413,1732727431717,-167.83,8.219e-05,2]
[343573414,1732727431727,-250.0,8.219e-05,2]
[343573415,1732727431736,-250.0,8.219e-05,2]
[343573416,1732727431746,-5591.14136189,8.22e-05,2]
[343573417,1732727431757,-777.46132207,8.22e-05,2]
[343573418,1732727431768,-683.29093751,8.22e-05,2]
[343573419,1732727431780,-16848.10637853,8.22e-05,2]
[343573420,1732727431789,-1847.54,8.269e-05,2]
[343573421,1732727431799,-2612.88,8.288e-05,2]
[343573422,1732727431810,-150.0,8.492e-05,2]
[343573423,1732727431819,-2000.0,8.493e-05,2]
[343573424,1732727431828,-250.0,8.526e-05,2]
[343573425,1732727431839,-217.6064,8.7e-05,2]
[343573426,1732727431848,-310.0001,8.7e-05,2]
[343573427,1732727431858,-10488.453,8.7e-05,2]
[343573428,1732727431867,-1456.8563,8.7e-05,2]
[343573429,1732727431881,-1569.2446,8.7e-05,2]
[343573430,1732727431892,-2500.0,8.7e-05,2]
[343573431,1732727431902,-2274.6487,8.7e-05,2]
[343573432,1732727431911,-3103.2577,8.7e-05,2]
[343573433,1732727431920,-267.3186,8.7e-05,2]
[343573434,1732727431931,-159.51,8.744e-05,2]
[343573435,1732727431940,-174.85,8.782e-05,2]
[343573436,1732727431950,-10041.74323018,8.79e-05,2]
[343573437,1732727431962,-36844.41626883,8.79e-05,2]
[343573438,1732727431971,-10436.3471,8.8e-05,2]
[343573439,1732727431982,-500.0,8.8e-05,2]
[343573440,1732727431992,-62.52254292,8.8e-05,2]
[343573441,1732727432030,-897.19,8.8e-05,2]
[343573442,1732727432042,-11050.53675708,8.8e-05,2]
[343573443,1732727432052,-100000.0,8.8e-05,2]
[343573444,1732727432061,-2000.0,8.807e-05,2]
[343573445,1732727432071,-1852.42,8.969e-05,2]
[343573446,1732727432080,-1000.0,8.969e-05,2]
[343573447,1732727432090,-500.0,9e-05,2]
[343573448,1732727432099,-500.0,9e-05,2]
[343573449,1732727432109,-500.0,9e-05,2]
[343573451,1732727432118,-500.0,9e-05,2]
[343573453,1732727432127,-500.0,9e-05,2]
[343573454,1732727432140,-500.0,9e-05,2]
[343573455,1732727432150,-500.0,9e-05,2]
[343573456,1732727432159,-500.0,9e-05,2]
[343573457,1732727432168,-500.0,9e-05,2]
[343573458,1732727432178,-500.0,9e-05,2]
[343573459,1732727432188,-500.0,9e-05,2]
[343573460,1732727432198,-500.0,9e-05,2]
[343573462,1732727432207,-278.92,9e-05,2]
[343573464,1732727432216,-500.0,9e-05,2]
[343573465,1732727432225,-1000.0,9.078e-05,2]
[343573466,1732727432235,-2000.0,9.122e-05,2]
[343573467,1732727432244,-363.48,9.178e-05,2]
[343573468,1732727432254,-150.0,9.178e-05,2]
[343573469,1732727432265,-434.46,9.178e-05,2]
[343573470,1732727432275,-150.0,9.178e-05,2]
[343573471,1732727432284,-150.0,9.178e-05,2]
[343573472,1732727432295,-150.0,9.178e-05,2]
[343573473,1732727432305,-434.46,9.178e-05,2]
[343573474,1732727432315,-150.0,9.178e-05,2]
[343573475,1732727432324,-150.0,9.178e-05,2]
[343573476,1732727432333,-363.48,9.178e-05,2]
[343573477,1732727432342,-150.0,9.178e-05,2]
[343573478,1732727432351,-150.0,9.178e-05,2]
[343573479,1732727432361,-150.0,9.178e-05,2]
[343573480,1732727432369,-434.46,9.178e-05,2]
[343573481,1732727432381,-150.0,9.178e-05,2]
[343573482,1732727432392,-363.48,9.178e-05,2]
[343573483,1732727432401,-150.0,9.178e-05,2]
[343573484,1732727432411,-150.0,9.178e-05,2]
[343573485,1732727432420,-434.46,9.178e-05,2]